bitfinex/quotes_BTCUSD_20250814
["timestamp","ask_amount","ask_price","bid_price","bid_amount"]
[1755183373442,0.48071268,118910.0,118900.0,0.0004]
[1755183373673,0.55456853,118910.0,118900.0,0.0004]
[1755183373951,0.72576296,118910.0,118900.0,0.0004]
[1755183374348,0.55956853,118910.0,118900.0,0.0004]
[1755183374770,0.55953853,118910.0,118900.0,0.0004]
[1755183374942,0.48246268,118910.0,118900.0,0.00235]
[1755183375123,0.48446268,118910.0,118900.0,0.00235]
[1755183376398,0.46701366,118910.0,118900.0,0.00235]
[1755183376569,0.08969325,118910.0,118900.0,0.00235]
[1755183376932,0.08772325,118910.0,118900.0,0.17377857]
[1755183377398,0.08772325,118910.0,118900.0,0.17487857]
[1755183377615,0.09035128,118910.0,118900.0,0.00667]
[1755183377837,0.13343572,118910.0,118900.0,0.00345]
[1755183378123,0.13540572,118910.0,118900.0,0.00345]
[1755183378805,0.30682015,118910.0,118900.0,0.0015]
[1755183379017,0.19019489,118910.0,118900.0,0.0015]
[1755183379241,0.35838932,118910.0,118900.0,0.0015]
[1755183379466,0.19019489,118910.0,118900.0,0.0015]
[1755183379908,0.14389045,118910.0,118900.0,0.0015]
[1755183380123,0.14651848,118910.0,118900.0,0.0015]
[1755183380561,0.31793291,118910.0,118900.0,0.0015]
[1755183380807,0.95874955,118910.0,118900.0,0.0015]
[1755183381030,1.29874955,118910.0,118900.0,0.0015]
[1755183381470,0.52565759,118900.0,118890.0,0.0185089]
[1755183381678,1.32270737,118900.0,118890.0,0.0185089]
[1755183382799,1.37317737,118900.0,118890.0,0.0185089]
[1755183383232,1.39368637,118900.0,118890.0,0.0185089]
[1755183383442,0.63210984,118900.0,118890.0,0.0185089]
[1755183384065,0.47603533,118900.0,118890.0,0.0185089]
[1755183384276,0.45752633,118900.0,118890.0,0.0185089]
[1755183384486,0.61360084,118900.0,118890.0,0.0185089]
[1755183384728,0.44217227,118900.0,118890.0,0.0185089]
[1755183385833,0.08472325,118900.0,118890.0,0.0217289]
[1755183386269,0.08472325,118900.0,118890.0,0.18995162]
[1755183386489,0.002,118900.0,118890.0,0.18995162]
[1755183386710,0.002,118900.0,118890.0,0.83339629]
[1755183386942,0.03871818,118910.0,118890.0,0.83339629]
[1755183387149,0.00049316,118920.0,118910.0,0.16819443]
[1755183387359,0.08113641,118920.0,118910.0,0.17141443]
[1755183388644,0.08113641,118920.0,118910.0,0.17241443]
[1755183388878,0.08113641,118920.0,118910.0,0.00422]
[1755183389084,0.08376422,118920.0,118910.0,0.001]
[1755183390383,0.08376422,118920.0,118910.0,0.00422]
[1755183390596,0.47016157,118920.0,118910.0,0.001]
[1755183390843,0.63571404,118920.0,118910.0,0.001]
[1755183391040,0.53841562,118920.0,118910.0,0.001]
[1755183391255,0.7065959,118920.0,118910.0,0.001]
[1755183391901,0.53841562,118920.0,118890.0,0.18995086]
[1755183392174,0.86403641,118920.0,118900.0,0.17249111]
[1755183392395,0.86403641,118920.0,118910.0,0.00322]
[1755183392614,0.86503641,118920.0,118910.0,0.00322]
[1755183393076,0.86403641,118920.0,118910.0,0.00322]
[1755183393281,0.86503641,118920.0,118910.0,0.00322]
[1755183393501,0.52503641,118920.0,118910.0,0.00428221]
[1755183394164,0.52603641,118920.0,118910.0,0.00428221]
[1755183395608,0.52603641,118920.0,118910.0,0.00106221]
[1755183396721,0.52562325,118920.0,118910.0,0.34106221]
[1755183396940,0.52562325,118920.0,118910.0,0.34]
[1755183397207,0.52778325,118920.0,118900.0,0.34322]
[1755183397436,0.89699038,118910.0,118890.0,0.0215789]
[1755183397661,0.00478825,118900.0,118890.0,0.0185089]
[1755183397881,0.25356007,118900.0,118890.0,0.0185089]
[1755183398123,0.89437649,118900.0,118890.0,0.0185089]
[1755183398335,0.72616792,118900.0,118890.0,0.0185089]
[1755183398541,0.90651055,118900.0,118890.0,0.0185089]
[1755183398956,0.91486551,118900.0,118890.0,0.0185089]
[1755183399176,0.10321227,118900.0,118890.0,0.0185089]
[1755183399383,0.14336807,118900.0,118890.0,0.0185089]
[1755183400033,0.14336807,118900.0,118890.0,0.0205089]
[1755183400237,0.14032807,118900.0,118890.0,0.0185089]
[1755183401057,0.30853664,118900.0,118890.0,0.0185089]
[1755183401270,0.30590839,118900.0,118890.0,0.0185089]
[1755183401470,0.13769982,118900.0,118890.0,0.0185089]
[1755183401680,0.14032807,118900.0,118890.0,0.0185089]
[1755183402090,0.14248807,118900.0,118890.0,0.0185089]
[1755183402271,0.12503905,118900.0,118890.0,0.0205789]
[1755183402509,0.12287905,118900.0,118890.0,0.0236489]
[1755183402723,0.12503905,118900.0,118890.0,0.0185089]
[1755183403526,0.34073581,118900.0,118890.0,0.0185089]
[1755183403731,1.32418048,118900.0,118890.0,0.0185089]
[1755183404089,0.68073581,118900.0,118890.0,0.0185089]
[1755183404294,0.47985982,118900.0,118890.0,0.0185089]
[1755183404748,0.64806839,118900.0,118890.0,0.0185089]
[1755183404941,0.65110839,118900.0,118890.0,0.0185089]
[1755183405281,0.65210839,118900.0,118890.0,0.0185089]
[1755183405712,1.29555306,118900.0,118890.0,0.0185089]
[1755183405919,1.44569935,118900.0,118890.0,0.0185089]
[1755183406125,1.46141169,118900.0,118890.0,0.0185089]
[1755183406351,0.91329436,118900.0,118890.0,0.0185089]
[1755183406561,1.54988169,118900.0,118890.0,0.0185089]
[1755183406771,1.54772169,118900.0,118890.0,0.0185089]
[1755183406978,6.54772169,118900.0,118890.0,0.0185089]
[1755183407632,6.54772169,118900.0,118890.0,0.01010195]
[1755183407896,6.54672169,118900.0,118890.0,0.001695]
[1755183408154,6.54872169,118900.0,118890.0,0.001695]
[1755183408364,1.16913056,118880.0,118870.0,0.0004]
[1755183408613,6.37019165,118880.0,118870.0,0.0004]
[1755183408821,0.52572836,118850.0,118840.0,0.00047]
[1755183409037,0.60845161,118850.0,118840.0,0.00047]
[1755183409259,0.44017227,118850.0,118840.0,0.00354]
[1755183409481,0.42272325,118850.0,118840.0,0.00354]
[1755183409700,0.42272325,118850.0,118840.0,0.00403316]
[1755183411022,0.42272325,118850.0,118840.0,0.00603316]
[1755183412150,0.49322398,118850.0,118840.0,0.00296316]
[1755183412366,0.53148924,118850.0,118840.0,0.00296316]
[1755183412579,0.53148924,118850.0,118840.0,0.00503316]
[1755183412786,0.47023037,118850.0,118840.0,0.00810316]
[1755183413004,0.13023037,118850.0,118840.0,0.00810316]
[1755183413460,0.13023037,118850.0,118840.0,0.17746196]
[1755183413657,0.12098851,118850.0,118840.0,0.17432666]
[1755183414392,0.03826526,118850.0,118840.0,0.20863007]
[1755183414813,0.00262892,118870.0,118850.0,0.16827662]
[1755183415055,0.08272325,118860.0,118850.0,0.16827662]
[1755183415480,0.08272325,118860.0,118850.0,0.0011]
[1755183415681,0.08535239,118860.0,118850.0,0.00417]
[1755183416488,0.12394324,118860.0,118850.0,0.00417]
[1755183416696,0.12394324,118860.0,118850.0,0.00503623]
[1755183417532,0.12394324,118860.0,118850.0,0.00603623]
[1755183417747,0.12394324,118860.0,118850.0,0.00296623]
[1755183417949,0.12394324,118860.0,118850.0,0.00603623]
[1755183418588,0.29220842,118860.0,118850.0,0.00296623]
[1755183418804,1.40941411,118860.0,118850.0,0.00296623]
[1755183419022,0.7816084,118860.0,118850.0,0.00296623]
[1755183419228,1.42505307,118860.0,118850.0,0.00296623]
[1755183419430,0.61098322,118860.0,118850.0,0.00296623]
[1755183419638,0.61098322,118860.0,118850.0,0.00196623]
[1755183419854,0.54332136,118860.0,118850.0,0.00196623]
[1755183420382,0.49440208,118860.0,118850.0,0.00196623]
[1755183420590,0.47695306,118860.0,118850.0,0.00096623]
[1755183420776,0.47695306,118860.0,118850.0,0.00403623]
[1755183420999,0.4613141,118860.0,118850.0,0.00096623]
[1755183421206,0.47695441,118860.0,118850.0,0.00096623]
[1755183421592,1.37463524,118860.0,118850.0,0.00096623]
[1755183422091,0.73287269,118860.0,118850.0,0.00096623]
[1755183423024,0.72983269,118860.0,118850.0,0.00096623]
[1755183424177,1.37629736,118860.0,118850.0,0.00096623]
[1755183424387,0.73285269,118860.0,118850.0,0.00096623]
[1755183424588,1.37629736,118860.0,118850.0,0.00096623]
[1755183424968,0.73285269,118860.0,118850.0,0.00096623]
[1755183425854,0.72983269,118860.0,118850.0,0.00096623]
[1755183426062,0.49608555,118860.0,118850.0,0.00096623]
[1755183426288,0.49608555,118860.0,118850.0,0.00303623]
[1755183426500,0.66435073,118860.0,118850.0,0.00303623]
[1755183426678,0.66435073,118860.0,118850.0,0.00096623]
[1755183427129,0.47695653,118860.0,118850.0,0.00598623]
[1755183427845,0.05423328,118860.0,118850.0,0.8187751]
[1755183428072,0.05423328,118860.0,118850.0,0.90019467]
[1755183428276,0.03859085,118860.0,118850.0,0.25675]
[1755183428488,0.03859085,118860.0,118850.0,0.17426557]
[1755183428694,0.02525574,118870.0,118850.0,0.17426557]
[1755183428921,0.11060791,118870.0,118850.0,0.17130557]
[1755183429123,0.19297143,118870.0,118860.0,0.00296]
[1755183429330,0.19034251,118870.0,118860.0,0.00502]
[1755183429751,0.14528172,118870.0,118860.0,0.17328518]
[1755183429926,0.14791064,118870.0,118860.0,0.00502]
[1755183430404,0.14528172,118870.0,118860.0,0.00502]
[1755183430609,0.14528172,118870.0,118860.0,0.1753496]
[1755183430788,0.14528172,118870.0,118860.0,0.17428518]
[1755183430988,0.06255847,118870.0,118860.0,0.17428518]
[1755183431532,0.06255847,118870.0,118860.0,0.00702]
[1755183431740,0.15224757,118870.0,118860.0,0.002]
[1755183432149,0.14862064,118870.0,118860.0,0.002]
[1755183432358,0.14599172,118870.0,118860.0,0.002]
[1755183432572,0.95768742,118870.0,118860.0,0.002]
[1755183432789,1.32590401,118870.0,118860.0,0.002]
[1755183432993,1.34400385,118870.0,118860.0,0.002]
[1755183433205,1.42648828,118870.0,118860.0,0.002]
[1755183433407,1.42577828,118870.0,118860.0,0.00179917]
[1755183433817,0.78233361,118870.0,118860.0,0.00179917]
[1755183434060,0.69692918,118870.0,118860.0,0.00079917]
[1755183434510,0.34,118860.0,118850.0,0.00096623]
[1755183434678,0.43836568,118860.0,118850.0,0.00096623]
[1755183435327,0.43836568,118860.0,118850.0,0.00392623]
[1755183436177,0.09836568,118860.0,118850.0,0.00492623]
[1755183436395,0.10099482,118860.0,118850.0,0.00492623]
[1755183436622,0.10099482,118860.0,118850.0,0.00592623]
[1755183437049,0.09836568,118860.0,118850.0,0.00592623]
[1755183437261,0.09836568,118860.0,118850.0,0.17626557]
[1755183437975,0.09836568,118860.0,118850.0,0.20454725]
[1755183438610,0.09836568,118860.0,118850.0,0.17626557]
[1755183439118,0.01564243,118860.0,118850.0,0.17626557]
[1755183441392,0.01564243,118860.0,118850.0,0.00798623]
[1755183441626,0.10049568,118860.0,118850.0,0.00296623]
[1755183442566,0.09836568,118860.0,118850.0,0.17733043]
[1755183442793,0.09836568,118860.0,118850.0,0.25875]
[1755183443440,0.09836568,118860.0,118850.0,0.17626557]
[1755183443645,0.09836568,118860.0,118850.0,0.00798623]
[1755183443816,0.10049568,118860.0,118850.0,0.00502623]
[1755183444603,0.10049568,118860.0,118850.0,0.00296623]
[1755183444804,0.26876086,118860.0,118850.0,0.00296623]
[1755183445185,0.14594529,118860.0,118850.0,0.00296623]
[1755183445406,0.15152443,118860.0,118850.0,0.00296623]
[1755183445615,0.14857443,118860.0,118850.0,0.00296623]
[1755183446335,0.31683961,118860.0,118850.0,0.00296623]
[1755183446533,0.31716047,118860.0,118850.0,0.00296623]
[1755183446944,0.31716047,118860.0,118830.0,0.00228939]
[1755183446945,0.32557372,118860.0,118830.0,0.00228939]
[1755183447166,0.08535261,118850.0,118830.0,0.00228939]
[1755183447388,0.13386463,118850.0,118830.0,0.17059686]
[1755183447829,0.10099504,118850.0,118840.0,0.00206]
[1755183448007,0.10312504,118850.0,118840.0,0.1703535]
[1755183448423,0.10099504,118850.0,118840.0,0.1703535]
[1755183448771,0.10312504,118850.0,118840.0,0.1682935]
[1755183449154,0.10312504,118850.0,118840.0,0.16903777]
[1755183449424,0.10312504,118850.0,118840.0,0.17109777]
[1755183449831,0.10099504,118850.0,118840.0,0.17405777]
[1755183450042,0.10099504,118850.0,118840.0,0.17505777]
[1755183450459,0.10312504,118850.0,118840.0,0.17505777]
[1755183450660,0.10312504,118850.0,118840.0,0.1702935]
[1755183451064,0.11378183,118850.0,118840.0,0.002]
[1755183451263,0.74453407,118850.0,118840.0,0.002]
[1755183451467,0.11419998,118850.0,118840.0,0.002]
[1755183451642,0.11682934,118850.0,118840.0,0.002]
[1755183452045,0.10617255,118850.0,118840.0,0.002]
[1755183452260,0.10617255,118850.0,118840.0,0.001]
[1755183452468,0.10617255,118850.0,118820.0,0.17969693]
[1755183452629,0.10717255,118850.0,118820.0,0.17969693]
[1755183453050,0.27545217,118850.0,118820.0,0.17128084]
[1755183453260,0.27545217,118850.0,118820.0,0.1683211]
[1755183453261,0.00557958,118840.0,118820.0,0.1683211]
[1755183453481,0.08485325,118830.0,118810.0,0.168311]
[1755183453866,0.09043305,118830.0,118820.0,0.002]
[1755183454471,0.08780325,118830.0,118820.0,0.002]
[1755183454674,0.10354319,118830.0,118820.0,0.004]
[1755183454871,0.11416047,118830.0,118820.0,0.004]
[1755183455079,0.11416047,118830.0,118810.0,0.168311]
[1755183455278,0.09842053,118830.0,118820.0,0.002]
[1755183455654,0.08780325,118830.0,118820.0,0.002]
[1755183455873,0.09043305,118830.0,118820.0,0.002]
[1755183456114,0.09043305,118830.0,118820.0,0.003]
[1755183456347,0.09043305,118830.0,118820.0,0.001]
[1755183456774,0.09043305,118830.0,118820.0,0.101]
[1755183456983,0.12464591,118830.0,118820.0,0.101]
[1755183457945,0.33048811,118830.0,118820.0,0.101]
[1755183458170,0.32785831,118830.0,118820.0,0.101]
[1755183458371,0.15955065,118830.0,118820.0,0.102]
[1755183458581,0.16218045,118830.0,118820.0,0.102]
[1755183460014,0.12501759,118830.0,118820.0,0.27245183]
[1755183460258,0.12501759,118830.0,118820.0,0.10413]
[1755183460517,0.12238779,118830.0,118820.0,0.10413]
[1755183460729,0.12238779,118830.0,118820.0,0.102]
[1755183460882,0.15731887,118830.0,118820.0,0.102]
[1755183462482,0.32562653,118830.0,118820.0,0.102]
[1755183462702,0.32299673,118830.0,118820.0,0.102]
[1755183463538,0.32299673,118830.0,118820.0,0.101]
[1755183463738,1.32389042,118830.0,118820.0,0.1]
[1755183463933,1.32389042,118830.0,118820.0,0.09158958]
[1755183464392,1.32389042,118830.0,118820.0,0.08317916]
[1755183464806,1.32389042,118830.0,118820.0,0.07476874]
[1755183464987,1.32489042,118830.0,118820.0,0.07476874]
[1755183465192,1.32389042,118830.0,118820.0,0.06635832]
[1755183465593,1.32689042,118830.0,118820.0,0.0579479]
[1755183466161,1.32689042,118830.0,118820.0,0.04953748]
[1755183466370,1.34259413,118830.0,118820.0,0.04112706]
[1755183466582,1.28935588,118830.0,118820.0,0.04112706]
[1755183467472,1.30505643,118830.0,118820.0,0.04112706]
[1755183468544,0.66161176,118830.0,118820.0,0.04112706]
[1755183468722,1.30505643,118830.0,118820.0,0.04112706]
[1755183468925,1.30505527,118830.0,118820.0,0.04112706]
[1755183469162,1.33032327,118830.0,118820.0,0.04112706]
[1755183469350,6.42511327,118830.0,118820.0,0.04112706]
[1755183470105,6.45011327,118830.0,118820.0,0.04112706]
[1755183470946,6.44811327,118830.0,118820.0,0.04112706]
[1755183471153,5.8046686,118830.0,118820.0,0.04112706]
[1755183471391,6.45111327,118830.0,118820.0,0.04112706]
[1755183471595,6.35532327,118830.0,118820.0,0.04112706]
[1755183472011,6.33232327,118830.0,118820.0,0.04112706]
[1755183472185,0.64616158,118830.0,118820.0,0.04112706]
[1755183472391,1.28960625,118830.0,118820.0,0.04112706]
[1755183472804,1.30705527,118830.0,118820.0,0.04112706]
[1755183473162,6.30492527,118830.0,118820.0,0.04112706]
[1755183474107,6.30492527,118830.0,118790.0,0.0004]
[1755183474108,0.18579918,118800.0,118790.0,0.0004]
[1755183474347,6.29479866,118800.0,118790.0,0.0004]
[1755183474752,5.65135399,118800.0,118790.0,0.0004]
[1755183474959,6.29479866,118800.0,118790.0,0.0004]
[1755183475470,6.29479866,118800.0,118790.0,0.0024]
[1755183475471,6.29729091,118800.0,118790.0,0.0024]
[1755183475712,5.65384624,118800.0,118790.0,0.0004]
[1755183475898,6.29529091,118800.0,118790.0,0.0004]
[1755183476264,6.29628914,118800.0,118790.0,0.0004]
[1755183476991,5.65284447,118800.0,118790.0,0.0004]
[1755183477191,0.65284447,118800.0,118790.0,0.0004]
[1755183477390,1.29628914,118800.0,118790.0,0.0004]
[1755183477616,1.29628914,118800.0,118790.0,0.0014]
[1755183477817,1.73918914,118800.0,118790.0,0.0014]
[1755183478807,1.09574447,118800.0,118790.0,0.0014]
[1755183478995,1.07158432,118800.0,118790.0,0.0014]
[1755183479198,0.62571432,118800.0,118790.0,0.0014]
[1755183479823,1.26915899,118800.0,118790.0,0.0014]
[1755183480706,0.82925803,118790.0,118780.0,0.0004]
[1755183480897,0.93065092,118790.0,118780.0,0.0004]
[1755183481109,0.28720625,118790.0,118780.0,0.0004]
[1755183481325,0.52582753,118780.0,118770.0,0.0196089]
[1755183481533,0.45587191,118780.0,118770.0,0.0196089]
[1755183481691,0.45587191,118780.0,118770.0,0.0226089]
[1755183482113,0.45587191,118780.0,118770.0,0.0196089]
[1755183482778,0.45587191,118780.0,118770.0,0.0206089]
[1755183482903,0.62722042,118780.0,118770.0,0.0206089]
[1755183483102,1.27066509,118780.0,118770.0,0.0226089]
[1755183484144,1.27066509,118780.0,118770.0,0.01419505]
[1755183484145,0.62722042,118780.0,118770.0,0.01419505]
[1755183484345,6.27066509,118780.0,118770.0,0.01419505]
[1755183484569,6.27066509,118780.0,118770.0,0.0027812]
[1755183484769,0.16840687,118760.0,118750.0,0.0004]
[1755183485044,0.45587191,118760.0,118750.0,0.0004]
[1755183485270,0.47312972,118760.0,118750.0,0.0034]
[1755183485488,0.47314384,118760.0,118750.0,0.0034]
[1755183485648,0.45569482,118760.0,118750.0,0.0034]
[1755183486058,0.45618677,118760.0,118750.0,0.0044]
[1755183486502,0.45618677,118760.0,118750.0,0.0014]
[1755183486844,0.49378504,118760.0,118750.0,0.0014]
[1755183488375,0.49378489,118760.0,118750.0,0.00436]
[1755183488586,0.49378489,118760.0,118750.0,0.0014]
[1755183488796,0.49378489,118760.0,118750.0,0.00436]
[1755183489613,1.32606545,118760.0,118750.0,0.0014]
[1755183490476,0.68262078,118760.0,118750.0,0.0014]
[1755183490685,0.49378489,118760.0,118750.0,0.00436]
[1755183490942,0.49378489,118760.0,118750.0,0.17285034]
[1755183491163,0.49478489,118760.0,118750.0,0.00336]
[1755183491826,0.49378489,118760.0,118750.0,0.00336]
[1755183492043,0.49578489,118760.0,118750.0,0.00336]
[1755183492212,0.66219176,118760.0,118750.0,0.0004]
[1755183492719,0.49378489,118760.0,118750.0,0.0004]
[1755183492934,0.66219176,118760.0,118750.0,0.0004]
[1755183493147,0.49378489,118760.0,118750.0,0.0004]
[1755183493352,0.49378489,118760.0,118750.0,0.00336]
[1755183494079,0.49378489,118760.0,118750.0,0.0004]
[1755183494298,0.49378489,118760.0,118750.0,0.00336]
[1755183494530,0.66219176,118760.0,118750.0,0.00336]
[1755183494925,0.66219176,118760.0,118750.0,0.0004]
[1755183495612,0.66517176,118760.0,118750.0,0.0004]
[1755183495816,1.30861643,118760.0,118750.0,0.0004]
[1755183496442,0.66517176,118760.0,118750.0,0.0004]
[1755183496660,1.27101816,118760.0,118750.0,0.0004]
[1755183496873,1.28846718,118760.0,118750.0,0.0004]
[1755183497287,0.69549251,118760.0,118750.0,0.0004]
[1755183497500,1.33893718,118760.0,118750.0,0.0004]
[1755183497717,0.70436078,118760.0,118750.0,0.0004]
[1755183497918,1.29733545,118760.0,118750.0,0.0004]
[1755183498324,1.29733553,118760.0,118750.0,0.0004]
[1755183498536,0.64204251,118760.0,118750.0,0.0004]
[1755183498729,0.64404251,118760.0,118750.0,0.0004]
[1755183498994,0.12118662,118760.0,118750.0,0.00336]
[1755183499204,0.12118662,118760.0,118750.0,0.00442929]
[1755183499205,0.11818662,118760.0,118750.0,0.00442929]
[1755183499420,0.11818662,118760.0,118750.0,0.00336]
[1755183499639,0.12081797,118760.0,118750.0,0.00336]
[1755183499853,0.12084046,118760.0,118750.0,0.00336]
[1755183500061,0.14976156,118760.0,118750.0,0.00336]
[1755183500280,0.14776156,118760.0,118750.0,0.00336]
[1755183500879,0.14776156,118760.0,118750.0,0.10336]
[1755183501317,0.14776156,118760.0,118750.0,0.20336]
[1755183501531,0.14876156,118760.0,118750.0,0.20436]
[1755183501735,0.14776156,118760.0,118750.0,0.20436]
[1755183501937,0.14776156,118760.0,118750.0,0.20536]
[1755183502746,0.14777183,118760.0,118750.0,0.20536]
[1755183503171,0.11885073,118760.0,118750.0,0.20536]
[1755183504080,0.11885073,118760.0,118750.0,0.2024]
[1755183505803,0.11885821,118760.0,118750.0,0.2024]
[1755183506938,0.62726508,118760.0,118750.0,0.2024]
[1755183507167,0.62463373,118760.0,118750.0,0.2024]
[1755183507396,1.2730884,118760.0,118750.0,0.2024]
[1755183507619,1.29053742,118760.0,118750.0,0.2024]
[1755183508077,0.64709275,118760.0,118750.0,0.2024]
[1755183508293,0.64411275,118760.0,118750.0,0.20248]
[1755183508518,0.64411275,118760.0,118750.0,0.20348]
[1755183508755,0.64411275,118760.0,118750.0,0.2014]
[1755183508950,0.64709275,118760.0,118750.0,0.2014]
[1755183510341,0.49457786,118760.0,118750.0,0.20248]
[1755183510544,0.49457786,118760.0,118750.0,0.20544]
[1755183510775,0.49557786,118760.0,118750.0,0.20544]
[1755183510943,0.15557786,118760.0,118750.0,0.37178105]
[1755183511154,0.0555968,118760.0,118750.0,1.01522572]
[1755183511357,0.05559721,118760.0,118750.0,1.01522572]
[1755183511561,0.06916838,118760.0,118750.0,1.01522572]
[1755183511770,0.06916838,118760.0,118750.0,0.37178105]
[1755183511971,0.03884295,118760.0,118750.0,0.37178105]
[1755183512167,0.00049195,118760.0,118750.0,1.09625672]
[1755183512425,0.00049195,118760.0,118750.0,1.18837672]
[1755183512631,0.00049195,118760.0,118750.0,1.27209997]
[1755183512835,0.00049195,118760.0,118750.0,1.62954899]
[1755183513902,0.00049195,118760.0,118750.0,0.98410432]
[1755183514111,0.00049195,118760.0,118750.0,1.61009997]
[1755183514330,0.00049195,118760.0,118750.0,1.53137672]
[1755183514533,0.00049195,118760.0,118750.0,1.44834572]
[1755183514753,0.00049195,118760.0,118750.0,0.80490105]
[1755183514976,0.00049195,118760.0,118750.0,1.45334572]
[1755183515413,0.00049195,118760.0,118750.0,1.53606897]
[1755183515654,0.00049195,118760.0,118750.0,1.6185534]
[1755183515867,0.00049195,118760.0,118750.0,1.6165534]
[1755183516102,0.00049195,118760.0,118750.0,1.63400242]
[1755183517186,0.00049195,118760.0,118750.0,1.63800242]
[1755183517897,0.00049195,118760.0,118750.0,1.66326542]
[1755183518146,0.00049195,118760.0,118750.0,1.58078099]
[1755183519156,1e-08,118760.0,118750.0,1.58078099]
[1755183519408,1e-08,118760.0,118750.0,1.59854099]
[1755183519824,1e-08,118760.0,118750.0,0.95509632]
[1755183520005,1e-08,118760.0,118750.0,1.59854099]
[1755183520246,1e-08,118760.0,118750.0,1.68102542]
[1755183520456,1e-08,118760.0,118750.0,1.65602542]
[1755183520662,1e-08,118760.0,118750.0,1.01258075]
[1755183520870,1e-08,118760.0,118750.0,1.65202542]
[1755183521118,1e-08,118760.0,118750.0,1.65602542]
[1755183521333,1e-08,118760.0,118750.0,1.65102542]
[1755183521557,1e-08,118760.0,118750.0,1.65502542]
[1755183521759,1e-08,118760.0,118750.0,1.64702542]
[1755183522205,1e-08,118760.0,118750.0,0.73580405]
[1755183522644,1e-08,118760.0,118750.0,1.37924872]
[1755183522772,1e-08,118760.0,118750.0,0.73580405]
[1755183523149,1e-08,118760.0,118750.0,1.37924872]
[1755183523773,1e-08,118760.0,118750.0,1.37624872]
[1755183524003,1e-08,118760.0,118750.0,1.45573315]
[1755183524252,1e-08,118760.0,118750.0,0.81132848]
[1755183524724,1e-08,118760.0,118750.0,0.72784405]
[1755183524944,1e-08,118760.0,118750.0,1.37425872]
[1755183525154,1e-08,118760.0,118750.0,1.37525872]
[1755183525369,1e-08,118760.0,118750.0,0.73081405]
[1755183525572,1e-08,118760.0,118750.0,1.37325872]
[1755183526001,1e-08,118760.0,118750.0,1.45574315]
[1755183527280,1e-08,118760.0,118750.0,1.45774315]
[1755183527693,1e-08,118760.0,118750.0,1.45674315]
[1755183528121,1e-08,118760.0,118750.0,1.45774315]
[1755183528331,1e-08,118760.0,118750.0,1.37525872]
[1755183529259,1e-08,118760.0,118750.0,1.45798197]
[1755183531791,1e-08,118760.0,118750.0,0.8145373]
[1755183531998,1e-08,118760.0,118750.0,1.45798197]
[1755183534099,1e-08,118760.0,118750.0,0.8145373]
[1755183534324,1e-08,118760.0,118750.0,1.45798197]
[1755183534549,1e-08,118760.0,118750.0,1.5404664]
[1755183534781,1e-08,118760.0,118750.0,1.5426064]
[1755183535244,1e-08,118760.0,118750.0,1.56005542]
[1755183536151,1e-08,118760.0,118750.0,1.55905542]
[1755183536378,1e-08,118760.0,118750.0,1.56205542]
[1755183537106,1e-08,118760.0,118750.0,1.56105542]
[1755183537458,1e-08,118760.0,118750.0,1.56405542]
[1755183541092,1e-08,118760.0,118750.0,1.58905542]
[1755183541721,1e-08,118760.0,118750.0,1.76668542]
[1755183542589,1e-08,118760.0,118750.0,1.76368542]
[1755183542930,1e-08,118760.0,118750.0,1.76768542]
[1755183543341,1e-08,118760.0,118750.0,1.76468542]
[1755183543545,1e-08,118760.0,118750.0,1.76768542]
[1755183544050,1e-08,118760.0,118750.0,1.76368542]
[1755183545779,1e-08,118760.0,118750.0,1.76668542]
[1755183546229,1e-08,118760.0,118750.0,1.67754542]
[1755183546471,1e-08,118760.0,118750.0,1.58905542]
[1755183546997,1e-08,118760.0,118750.0,1.58605542]
[1755183547208,1e-08,118760.0,118750.0,1.5436064]
[1755183547419,1e-08,118760.0,118750.0,1.5396364]
[1755183547420,0.00201001,118760.0,118750.0,1.5396364]
[1755183547833,0.00519001,118760.0,118750.0,1.11701197]
[1755183548172,0.00519001,118760.0,118750.0,1.11501197]
[1755183548374,0.00519001,118760.0,118750.0,1.11601197]
[1755183548575,0.00519001,118760.0,118750.0,1.45601197]
[1755183548795,0.00519001,118760.0,118750.0,0.38784405]
[1755183548996,0.00519001,118760.0,118750.0,1.03128872]
[1755183549202,0.00519001,118760.0,118750.0,1.37228872]
[1755183549839,0.00519001,118760.0,118750.0,1.37128872]
[1755183550045,0.00519001,118760.0,118750.0,1.37028872]
[1755183550445,0.00519001,118760.0,118750.0,1.45277315]
[1755183551076,0.00301001,118760.0,118750.0,1.45277315]
[1755183551288,0.00301001,118760.0,118750.0,1.5375064]
[1755183552959,0.00301001,118760.0,118750.0,1.5354964]
[1755183554102,0.00619001,118760.0,118750.0,1.5354964]
[1755183554559,0.00301001,118760.0,118750.0,1.5354964]
[1755183554799,0.00301001,118760.0,118750.0,1.5375064]
[1755183559302,0.00100001,118760.0,118750.0,1.55819542]
[1755183559716,0.00100001,118760.0,118750.0,1.58319542]
[1755183559717,1e-08,118760.0,118750.0,1.58319542]
[1755183560133,1e-08,118760.0,118750.0,1.67301542]
[1755183560336,0.07084186,118810.0,118800.0,0.16835016]
[1755183560616,0.07285186,118810.0,118800.0,0.82877754]
[1755183561068,0.06766186,118830.0,118820.0,0.16832183]
[1755183561253,0.07285186,118830.0,118820.0,0.8117665]
[1755183561461,0.07285186,118830.0,118820.0,0.16832183]
[1755183561658,0.07285186,118830.0,118820.0,0.8117665]
[1755183561893,0.07285186,118830.0,118820.0,0.16832183]
[1755183562444,0.00519,118830.0,118820.0,0.16832183]
[1755183563282,0.00519,118830.0,118820.0,0.8117665]
[1755183563487,0.00619,118830.0,118820.0,0.8117665]
[1755183563788,0.00919,118830.0,118820.0,0.8117665]
[1755183563988,0.00919,118830.0,118820.0,0.16832183]
[1755183564150,0.00919,118830.0,118820.0,0.17773722]
[1755183564349,0.00919,118830.0,118820.0,0.16832183]
[1755183565272,0.00919,118830.0,118820.0,0.8117665]
[1755183566290,0.00919,118830.0,118820.0,0.16832183]
[1755183566496,0.09191325,118830.0,118820.0,0.16832183]
[1755183566846,0.10787076,118830.0,118810.0,0.16832349]
[1755183567097,0.00318,118820.0,118810.0,0.16833599]
[1755183567309,0.00519,118820.0,118800.0,0.17691535]
[1755183567526,0.08791325,118820.0,118800.0,0.17691535]
[1755183567679,0.00318,118810.0,118800.0,0.17691535]
[1755183567884,0.00519,118810.0,118800.0,0.19727275]
[1755183568117,0.00519,118810.0,118800.0,0.17691535]
[1755183570008,0.00619,118810.0,118800.0,0.82036002]
[1755183570251,0.00301,118810.0,118800.0,0.82237002]
[1755183570691,0.00501,118810.0,118800.0,0.82237002]
[1755183571132,0.003,118810.0,118800.0,0.82237002]
[1755183571330,0.003,118810.0,118800.0,0.90809445]
[1755183572271,0.002,118810.0,118800.0,0.90809445]